fUSD/lending_fUSD_20250523
["ID","MTS","AMOUNT","RATE_DAILY","PERIOD"]
[362096541,1747991504963,-321.35165344,0.00028629,4]
[362096542,1747991504987,-420.0,0.00028629,4]
[362096543,1747991505010,-420.0,0.00028629,4]
[362096544,1747991505033,-420.0,0.00028629,4]
[362096545,1747991505056,-151.0,0.00028629,7]
[362096546,1747991505085,-174.83745971,0.00028629,4]
[362096547,1747991505107,-475.83,0.00028629,4]
[362096548,1747991505131,-420.0,0.00028629,4]
[362096549,1747991505154,-420.0,0.00028629,4]
[362096550,1747991505183,-824.61,0.00028629,4]
[362096551,1747991505206,-420.0,0.00028629,4]
[362096552,1747991505231,-434.2,0.00028629,4]
[362096553,1747991505257,-420.0,0.00028629,4]
[362096554,1747991505281,-420.0,0.00028629,4]
[362096555,1747991505303,-420.0,0.00028629,4]
[362096556,1747991505328,-420.0,0.00028629,4]
[362096557,1747991505351,-596.23,0.00028629,2]
[362096558,1747991505375,-420.0,0.00028629,4]
[362096559,1747991505400,-420.0,0.00028629,4]
[362096560,1747991505423,-642.1,0.00028629,4]
[362096561,1747991505446,-541.40274578,0.00028629,4]
[362096562,1747991505468,-541.4,0.00028629,4]
[362096563,1747991505490,-511.46,0.00028629,2]
[362096564,1747991505512,-420.0,0.00028629,4]
[362096565,1747991505535,-1280.62,0.00028629,4]
[362096566,1747991505558,-420.0,0.00028629,4]
[362096567,1747991505580,-420.0,0.00028629,4]
[362096568,1747991505602,-420.0,0.00028629,4]
[362096569,1747991505624,-420.0,0.00028629,4]
[362096570,1747991505647,-420.0,0.00028629,4]
[362096571,1747991505668,-420.0,0.00028629,4]
[362096572,1747991505692,-420.0,0.00028629,4]
[362096573,1747991505715,-151.0,0.0002863,7]
[362096574,1747991505737,-151.0,0.0002863,7]
[362096575,1747991505759,-151.0,0.00028718,7]
[362096576,1747991505794,-153.283581,0.00028718,7]
[362096577,1747991505818,-151.0,0.00028718,7]
[362096578,1747991505840,-151.0,0.00028718,7]
[362096579,1747991505862,-151.0,0.00028718,7]
[362096580,1747991505884,-151.0,0.00028718,7]
[362096581,1747991505906,-1141.926184,0.00028721,5]
[362096582,1747991505928,-187.658703,0.00028732,7]
[362096583,1747991505952,-187.658703,0.00028732,7]
[362096584,1747991505974,-5672.91331219,0.00028749,2]
[362096585,1747991505997,-527.75,0.00028765,4]
[362096586,1747991506019,-6943.92,0.00028765,4]
[362096587,1747991506043,-420.0,0.00028765,4]
[362096588,1747991506071,-420.0,0.00028765,4]
[362096589,1747991506094,-420.0,0.00028765,4]
[362096590,1747991506117,-420.0,0.00028765,4]
[362096591,1747991506142,-420.0,0.00028765,4]
[362096592,1747991506168,-617.57,0.00028765,2]
[362096593,1747991506191,-1210.43,0.00028765,4]
[362096594,1747991506215,-420.0,0.00028765,4]
[362096595,1747991506238,-729.42,0.00028765,4]
[362096596,1747991506263,-420.0,0.00028765,4]
[362096597,1747991506287,-420.0,0.00028765,4]
[362096598,1747991506319,-2438.98,0.00028765,4]
[362096599,1747991506347,-4640.96,0.00028765,4]
[362096600,1747991506370,-429.76,0.00028765,4]
[362096601,1747991506394,-2057.93,0.00028765,4]
[362096602,1747991506418,-1421.73,0.00028765,4]
[362096603,1747991506442,-509.55,0.00028765,4]
[362096604,1747991506466,-420.0,0.00028765,4]
[362096605,1747991506490,-420.0,0.00028765,4]
[362096606,1747991506514,-838.66,0.00028765,4]
[362096607,1747991506541,-4985.69,0.00028765,4]
[362096608,1747991506569,-2018.07,0.00028765,4]
[362096609,1747991506594,-848.67,0.00028765,4]
[362096610,1747991506619,-420.0,0.00028765,4]
[362096611,1747991506645,-442.04,0.00028765,4]
[362096612,1747991506672,-420.0,0.00028765,4]
[362096613,1747991506698,-411.51925872,0.00028765,4]
[362096614,1747991506725,-420.0,0.00028765,4]
[362096615,1747991506750,-420.0,0.00028765,4]
[362096616,1747991506776,-3201.45,0.00028765,4]
[362096617,1747991506802,-420.0,0.00028765,4]
[362096618,1747991506828,-420.0,0.00028765,4]
[362096619,1747991506860,-420.0,0.00028765,4]
[362096620,1747991506886,-990.16,0.00028765,4]
[362096621,1747991506913,-420.0,0.00028766,4]
[362096622,1747991506940,-572.7,0.00028766,4]
[362096623,1747991506966,-219.204606,0.00028766,7]
[362096624,1747991506991,-219.204606,0.00028766,7]
[362096625,1747991507017,-420.0,0.00028766,4]
[362096626,1747991507042,-420.0,0.00028766,4]
[362096627,1747991507066,-420.0,0.00028766,4]
[362096628,1747991507092,-420.0,0.00028766,4]
[362096629,1747991507119,-359.95581277,0.00028766,4]
[362096630,1747991507147,-420.0,0.00028766,4]
[362096631,1747991507175,-420.0,0.00028766,4]
[362096632,1747991507199,-1000.0,0.00028766,2]
[362096633,1747991507225,-420.0,0.00028766,4]
[362096634,1747991507256,-420.0,0.00028766,4]
[362096635,1747991507281,-420.0,0.00028766,4]
[362096636,1747991507307,-420.0,0.00028766,4]
[362096637,1747991507332,-420.0,0.00028766,4]
[362096638,1747991507358,-420.0,0.00028766,4]
[362096639,1747991507387,-420.0,0.00028766,4]
[362096640,1747991507411,-475.83,0.00028766,4]
[362096641,1747991507436,-420.0,0.00028766,4]
[362096642,1747991507460,-420.0,0.00028766,4]
[362096643,1747991507484,-824.61,0.00028766,4]
[362096644,1747991507514,-420.0,0.00028766,4]
[362096645,1747991507540,-434.2,0.00028766,4]
[362096646,1747991507566,-383.38988964,0.00028766,4]
[362096647,1747991507593,-437.53171365,0.00028766,4]
[362096648,1747991507617,-420.0,0.00028766,4]
[362096649,1747991507643,-420.0,0.00028766,4]
[362096650,1747991507667,-596.23,0.00028766,2]
[362096651,1747991507691,-420.0,0.00028766,4]
[362096652,1747991507716,-420.0,0.00028766,4]
[362096653,1747991507741,-151.0,0.00028766,7]
[362096654,1747991507766,-642.1,0.00028766,4]
[362096655,1747991507791,-541.4,0.00028766,4]
[362096656,1747991507817,-151.0,0.00028766,7]
[362096657,1747991507843,-151.0,0.00028766,7]
[362096658,1747991507868,-420.0,0.00028766,4]
[362096659,1747991507895,-1280.62,0.00028766,4]
[362096660,1747991507919,-153.910187,0.00028766,7]
[362096661,1747991507944,-233.783151,0.00028766,7]
[362096662,1747991507969,-420.0,0.00028766,4]
[362096663,1747991507995,-233.783151,0.00028766,7]
[362096664,1747991508021,-525.20615316,0.00028766,4]
[362096665,1747991508047,-420.0,0.00028766,4]
[362096666,1747991508072,-394.81737781,0.00028766,4]
[362096667,1747991508096,-151.0,0.00028766,7]
[362096668,1747991508121,-420.0,0.00028766,4]
[362096669,1747991508147,-151.0,0.00028766,7]
[362096670,1747991508175,-184.901855,0.00028766,7]
[362096671,1747991508201,-184.901855,0.00028766,7]
[362096672,1747991508226,-420.0,0.00028766,4]
[362096673,1747991508252,-420.0,0.00028766,4]
[362096674,1747991508277,-151.0,0.00028766,7]
[362096675,1747991508301,-461.004038,0.00028766,7]
[362096676,1747991508327,-461.004038,0.00028766,7]
[362096677,1747991508352,-151.0,0.00028766,7]
[362096678,1747991508377,-151.0,0.00028767,7]
[362096679,1747991508401,-151.0,0.00028767,7]
[362096680,1747991508425,-151.0,0.00028767,7]
[362096681,1747991508450,-151.0,0.00028767,7]
[362096682,1747991508475,-151.0,0.00028767,7]
[362096683,1747991508499,-151.0,0.00028767,7]
[362096684,1747991508522,-151.0,0.00028767,7]
[362096685,1747991508546,-152.948742,0.00028767,7]
[362096686,1747991508570,-151.0,0.00028767,7]
[362096687,1747991508593,-151.0,0.00028767,7]
[362096688,1747991508617,-151.0,0.00028767,7]
[362096689,1747991508643,-336.07916353,0.00028767,2]
[362096690,1747991508668,-159.72,0.00028767,2]
[362096691,1747991508693,-280.828,0.00028849,2]
[362096692,1747991508718,-6838.0,0.00028849,2]
[362096693,1747991508743,-841.0,0.00028849,2]
[362096694,1747991508767,-4052.0,0.00028849,2]
[362096695,1747991508792,-881.0,0.00028849,2]
[362096696,1747991508817,-11968.04654846,0.00028861,2]
[362096697,1747991508841,-1379.80833,0.0002887,2]
[362096698,1747991508867,-164.39240092,0.00028877,30]
[362096699,1747991508893,-977.82,0.0002888,120]
[362096700,1747991508919,-377.93,0.00028893,120]
[362096701,1747991508945,-151.0,0.00028894,7]
[362096702,1747991508971,-151.0,0.00028894,7]
[362096703,1747991508995,-151.0,0.00028894,7]
[362096704,1747991509021,-900.0,0.000289,10]
[362096705,1747991509047,-527.75,0.00028902,4]
[362096706,1747991509073,-6943.92,0.00028902,4]
[362096707,1747991509099,-420.0,0.00028902,4]
[362096708,1747991509126,-420.0,0.00028902,4]
[362096709,1747991509452,-366.47707242,0.00028902,4]
[362096710,1747991509478,-569.926542,0.00028902,4]
[362096711,1747991509507,-420.0,0.00028902,4]
[362096712,1747991509532,-617.57,0.00028902,2]
[362096713,1747991509558,-1210.43,0.00028902,4]
[362096714,1747991509581,-420.0,0.00028902,4]
[362096715,1747991509605,-729.42,0.00028902,4]
[362096716,1747991509628,-420.0,0.00028902,4]
[362096717,1747991509657,-295.88238948,0.00028902,4]
[362096718,1747991509681,-2438.98,0.00028902,4]
[362096719,1747991509708,-4640.96,0.00028902,4]
[362096720,1747991509733,-429.76,0.00028902,4]
[362096721,1747991509757,-2057.93,0.00028902,4]
[362096722,1747991509780,-1421.73,0.00028902,4]
[362096723,1747991509804,-509.55,0.00028902,4]
[362096724,1747991509828,-420.0,0.00028902,4]
[362096725,1747991509853,-420.0,0.00028902,4]
[362096726,1747991509877,-838.66,0.00028902,4]
[362096727,1747991509901,-4985.69,0.00028902,4]
[362096728,1747991509925,-2018.07,0.00028902,4]
[362096729,1747991509949,-848.67,0.00028902,4]
[362096730,1747991509973,-420.0,0.00028902,4]
[362096731,1747991509998,-442.04,0.00028902,4]
[362096732,1747991510021,-435.198531,0.00028902,4]
[362096733,1747991510045,-420.0,0.00028902,4]
[362096734,1747991510068,-420.0,0.00028902,4]
[362096735,1747991510091,-3201.45,0.00028902,4]
[362096736,1747991510113,-420.0,0.00028902,4]
[362096737,1747991510136,-420.0,0.00028902,4]
[362096738,1747991510160,-420.0,0.00028902,4]
[362096739,1747991510187,-990.16,0.00028902,4]
[362096740,1747991510210,-420.0,0.00028903,4]
[362096741,1747991510232,-572.7,0.00028903,4]
[362096742,1747991510258,-346.90554918,0.00028903,4]
[362096743,1747991510282,-420.0,0.00028903,4]
[362096744,1747991510305,-158.95133262,0.00028903,4]
[362096745,1747991510332,-420.0,0.00028903,4]
[362096746,1747991510356,-420.0,0.00028903,4]
[362096747,1747991510379,-151.0,0.00028903,7]
[362096748,1747991510402,-151.0,0.00028903,7]
[362096749,1747991510425,-420.0,0.00028903,4]
[362096750,1747991510448,-1000.0,0.00028903,2]
[362096751,1747991510472,-420.0,0.00028903,4]
[362096752,1747991510495,-282.6279531,0.00028903,4]
[362096753,1747991510518,-420.0,0.00028903,4]
[362096754,1747991510540,-420.0,0.00028903,4]
[362096755,1747991510563,-234.512396,0.00028903,7]
[362096756,1747991510588,-234.512396,0.00028903,7]
[362096757,1747991510611,-420.0,0.00028903,4]
[362096758,1747991510633,-420.0,0.00028903,4]
[362096759,1747991510655,-420.0,0.00028903,4]
[362096760,1747991510677,-151.0,0.00028903,7]
[362096761,1747991510700,-475.83,0.00028903,4]
[362096762,1747991510723,-420.0,0.00028903,4]
[362096763,1747991510748,-420.0,0.00028903,4]
[362096764,1747991510773,-824.61,0.00028903,4]
[362096765,1747991510797,-420.0,0.00028903,4]
[362096766,1747991510820,-434.2,0.00028903,4]
[362096767,1747991510845,-420.0,0.00028903,4]
[362096768,1747991510868,-420.0,0.00028903,4]
[362096769,1747991510890,-596.23,0.00028903,2]
[362096770,1747991510912,-420.0,0.00028903,4]
[362096771,1747991510934,-420.0,0.00028903,4]
[362096772,1747991510958,-642.1,0.00028903,4]
[362096773,1747991510997,-541.4,0.00028903,4]
[362096774,1747991511022,-511.46,0.00028903,2]
[362096775,1747991511047,-420.0,0.00028903,4]
[362096776,1747991511071,-1280.62,0.00028903,4]
[362096777,1747991511095,-420.0,0.00028903,4]
[362096778,1747991511120,-420.0,0.00028903,4]
[362096779,1747991511143,-564.93614845,0.00028903,4]
[362096780,1747991511170,-420.0,0.00028903,4]
[362096781,1747991511195,-420.0,0.00028903,4]
[362096782,1747991511220,-151.0,0.00028904,7]
[362096783,1747991511244,-151.0,0.00028904,7]
[362096784,1747991511268,-151.0,0.00028904,7]
[362096785,1747991511291,-151.0,0.00028904,7]
[362096786,1747991511315,-151.0,0.00028904,7]
[362096787,1747991511340,-441.565124,0.00028904,7]
[362096788,1747991511364,-441.565124,0.00028904,7]
[362096789,1747991511388,-150.0,0.00028953,2]
[362096790,1747991511413,-5672.91331219,0.00028978,2]
[362096791,1747991511436,-1031.09,0.00028996,2]
[362096792,1747991511460,-151.72,0.00029,2]
[362096793,1747991511484,-1000.0,0.00029,2]
[362096794,1747991511513,-404.929478,0.00029002,4]
[362096795,1747991511540,-700.0,0.00029038,7]
[362096796,1747991511566,-527.75,0.00029039,4]
[362096797,1747991511591,-6943.92,0.00029039,4]
[362096798,1747991511616,-420.0,0.00029039,4]
[362096799,1747991511640,-420.0,0.00029039,4]
[362096800,1747991511667,-420.0,0.00029039,4]
[362096801,1747991511693,-617.57,0.00029039,2]
[362096802,1747991511717,-1210.43,0.00029039,4]
[362096803,1747991511743,-420.0,0.00029039,4]
[362096804,1747991511768,-729.42,0.00029039,4]
[362096805,1747991511794,-420.0,0.00029039,4]
[362096806,1747991511820,-2438.98,0.00029039,4]
[362096807,1747991511846,-4640.96,0.00029039,4]
[362096808,1747991511871,-429.76,0.00029039,4]
[362096809,1747991511896,-2057.93,0.00029039,4]
[362096810,1747991511920,-1421.73,0.00029039,4]
[362096811,1747991511945,-509.55,0.00029039,4]
[362096812,1747991511971,-420.0,0.00029039,4]
[362096813,1747991511996,-420.0,0.00029039,4]
[362096814,1747991512020,-838.66,0.00029039,4]
[362096815,1747991512044,-4985.69,0.00029039,4]
[362096816,1747991512183,-2018.07,0.00029039,4]
[362096817,1747991512209,-848.67,0.00029039,4]
[362096818,1747991512233,-420.0,0.00029039,4]
[362096819,1747991512259,-442.04,0.00029039,4]
[362096820,1747991512283,-420.0,0.00029039,4]
[362096821,1747991512307,-420.0,0.00029039,4]
[362096822,1747991512331,-3201.45,0.00029039,4]
[362096823,1747991512356,-420.0,0.00029039,4]
[362096824,1747991512380,-420.0,0.00029039,4]
[362096825,1747991512404,-420.0,0.00029039,4]
[362096826,1747991512429,-990.16,0.00029039,4]
[362096827,1747991512454,-420.0,0.0002904,4]
[362096828,1747991512477,-572.7,0.0002904,4]
[362096829,1747991512500,-420.0,0.0002904,4]
[362096830,1747991512524,-277.60753571,0.0002904,4]
[362096831,1747991512546,-420.0,0.0002904,4]
[362096832,1747991512574,-420.0,0.0002904,4]
[362096833,1747991512597,-1000.0,0.0002904,2]
[362096834,1747991512620,-420.0,0.0002904,4]
[362096835,1747991512644,-420.0,0.0002904,4]
[362096836,1747991512668,-420.0,0.0002904,4]
[362096837,1747991512692,-420.0,0.0002904,4]
[362096838,1747991512717,-420.0,0.0002904,4]
[362096839,1747991512740,-151.0,0.0002904,7]
[362096840,1747991512764,-182.27659046,0.0002904,4]
[362096841,1747991512788,-1402.509392,0.0002904,7]
[362096842,1747991512813,-1402.509392,0.0002904,7]
[362096843,1747991512837,-475.83,0.0002904,4]
[362096844,1747991512861,-420.0,0.0002904,4]
[362096845,1747991512885,-420.0,0.0002904,4]
[362096846,1747991512909,-824.61,0.0002904,4]
[362096847,1747991512933,-420.0,0.0002904,4]
[362096848,1747991512957,-434.2,0.0002904,4]
[362096849,1747991512981,-241.895925,0.0002904,7]
[362096850,1747991513006,-241.895925,0.0002904,7]
[362096851,1747991513036,-420.0,0.0002904,4]
[362096852,1747991513062,-420.0,0.0002904,4]
[362096853,1747991513090,-596.23,0.0002904,2]
[362096854,1747991513117,-420.0,0.0002904,4]
[362096855,1747991513143,-420.0,0.0002904,4]
[362096856,1747991513173,-642.1,0.0002904,4]
[362096857,1747991513199,-541.4,0.0002904,4]
[362096858,1747991513223,-420.0,0.0002904,4]
[362096859,1747991513248,-1280.62,0.0002904,4]
[362096860,1747991513272,-420.0,0.0002904,4]
[362096861,1747991513296,-420.0,0.0002904,4]
[362096862,1747991513320,-420.0,0.0002904,4]
[362096863,1747991513346,-420.0,0.0002904,4]
[362096864,1747991513369,-151.0,0.00029041,7]
[362096865,1747991513392,-151.0,0.00029041,7]
[362096866,1747991513415,-187.658703,0.00029041,7]
[362096867,1747991513438,-187.658703,0.00029041,7]
[362096868,1747991513463,-300.654446,0.00029041,7]
[362096869,1747991513488,-300.654446,0.00029041,7]
[362096870,1747991513511,-235.66674,0.00029041,7]
[362096871,1747991513535,-235.66674,0.00029041,7]
[362096872,1747991513559,-152.328319,0.00029041,7]
[362096873,1747991513583,-151.0,0.00029041,7]
[362096874,1747991513606,-151.0,0.00029041,7]
[362096875,1747991513629,-151.0,0.00029041,7]
[362096876,1747991513652,-166.821115,0.00029041,7]
[362096877,1747991513676,-151.0,0.00029041,7]
[362096878,1747991513700,-151.0,0.00029041,7]
[362096879,1747991513724,-153.275154,0.00029041,7]
[362096880,1747991513747,-151.0,0.00029041,7]
[362096881,1747991513772,-164.821681,0.00029041,7]
[362096882,1747991513795,-151.0,0.00029041,7]
[362096883,1747991513819,-164.39240092,0.00029068,30]
[362096884,1747991513841,-150.0,0.00029073,2]
[362096885,1747991513865,-2475.032,0.00029081,21]
[362096886,1747991513888,-156.0,0.00029084,2]
[362096887,1747991513911,-719.04747942,0.00029084,2]
[362096888,1747991513934,-11968.04654846,0.00029119,2]
[362096889,1747991513959,-527.75,0.00029176,4]
[362096890,1747991513983,-6943.92,0.00029176,4]
[362096891,1747991514008,-420.0,0.00029176,4]
[362096892,1747991514032,-420.0,0.00029176,4]
[362096893,1747991514057,-420.0,0.00029176,4]
[362096894,1747991514082,-617.57,0.00029176,2]
[362096895,1747991514106,-1210.43,0.00029176,4]
[362096896,1747991514130,-420.0,0.00029176,4]
[362096897,1747991514153,-729.42,0.00029176,4]
[362096898,1747991514181,-420.0,0.00029176,4]
[362096899,1747991514204,-2438.98,0.00029176,4]
[362096900,1747991514230,-4640.96,0.00029176,4]
[362096901,1747991514256,-429.76,0.00029176,4]
[362096902,1747991514280,-2057.93,0.00029176,4]
[362096903,1747991514304,-1421.73,0.00029176,4]
[362096904,1747991514331,-509.55,0.00029176,4]
[362096905,1747991514356,-199.89765069,0.00029176,4]
[362096906,1747991514381,-420.0,0.00029176,4]
[362096907,1747991514405,-838.66,0.00029176,4]
[362096908,1747991514430,-4985.69,0.00029176,4]
[362096909,1747991514455,-2018.07,0.00029176,4]
[362096910,1747991514480,-848.67,0.00029176,4]
[362096911,1747991514503,-420.0,0.00029176,4]
[362096912,1747991514528,-442.04,0.00029176,4]
[362096913,1747991514552,-420.0,0.00029176,4]
[362096914,1747991514576,-548.09116056,0.00029176,4]
[362096915,1747991514599,-3201.45,0.00029176,4]
[362096916,1747991514623,-441.19278286,0.00029176,4]
[362096917,1747991514648,-420.0,0.00029176,4]
[362096918,1747991514672,-420.0,0.00029176,4]
[362096919,1747991514696,-990.16,0.00029176,4]
[362096920,1747991514720,-420.0,0.00029177,4]
[362096921,1747991514744,-572.7,0.00029177,4]
[362096922,1747991514768,-420.0,0.00029177,4]
[362096923,1747991514792,-444.21971361,0.00029177,4]
[362096924,1747991514816,-390.11377901,0.00029177,4]
[362096925,1747991514840,-983.42716318,0.00029177,2]
[362096926,1747991514863,-296.15088621,0.00029177,4]
[362096927,1747991514889,-226.43422066,0.00029177,4]
[362096928,1747991514913,-420.0,0.00029177,4]
[362096929,1747991514937,-420.0,0.00029177,4]
[362096930,1747991514961,-420.0,0.00029177,4]
[362096931,1747991514985,-475.83,0.00029177,4]
[362096932,1747991515010,-420.0,0.00029177,4]
[362096933,1747991515033,-400.77537944,0.00029177,4]
[362096934,1747991515057,-824.61,0.00029177,4]
[362096935,1747991515081,-420.0,0.00029177,4]
[362096936,1747991515105,-434.2,0.00029177,4]
[362096937,1747991515128,-420.0,0.00029177,4]
[362096938,1747991515152,-420.0,0.00029177,4]
[362096939,1747991515178,-596.23,0.00029177,2]
[362096940,1747991515200,-413.43154525,0.00029177,4]
[362096941,1747991515225,-420.0,0.00029177,4]
[362096942,1747991515250,-642.1,0.00029177,4]
[362096943,1747991515275,-541.4,0.00029177,4]
[362096944,1747991515299,-420.0,0.00029177,4]
[362096945,1747991515322,-1280.62,0.00029177,4]
[362096946,1747991515346,-420.0,0.00029177,4]
[362096947,1747991515369,-420.0,0.00029177,4]
[362096948,1747991515392,-420.0,0.00029177,4]
[362096949,1747991515417,-420.0,0.00029177,4]
[362096950,1747991515440,-151.0,0.00029178,7]
[362096951,1747991515463,-151.0,0.00029178,7]
[362096952,1747991515488,-151.0,0.00029178,7]
[362096953,1747991515513,-219.204606,0.00029178,7]
[362096954,1747991515537,-219.204606,0.00029178,7]
[362096955,1747991515559,-154.388394,0.00029178,7]
[362096956,1747991515582,-151.0,0.00029178,7]
[362096957,1747991515606,-151.0,0.00029178,7]
[362096958,1747991515630,-184.901855,0.00029178,7]
[362096959,1747991515654,-184.901855,0.00029178,7]
[362096960,1747991515678,-151.0,0.00029178,7]
[362096961,1747991515701,-461.004038,0.00029178,7]
[362096962,1747991515727,-461.004038,0.00029178,7]
[362096963,1747991515750,-151.0,0.00029178,7]
[362096964,1747991515774,-151.0,0.0002919,7]
[362096965,1747991515798,-151.0,0.0002919,7]
[362096966,1747991515822,-151.0,0.0002919,7]
[362096967,1747991515847,-151.0,0.0002919,7]
[362096968,1747991515871,-511.46,0.00029199,2]
[362096969,1747991515894,-132114.77326078,0.000292,7]
[362096970,1747991515918,-151.0,0.000292,7]
[362096971,1747991515942,-264.582403,0.000292,7]
[362096972,1747991515966,-187.658703,0.000292,7]
[362096973,1747991515990,-187.658703,0.000292,7]
[362096974,1747991516015,-151.0,0.000292,7]
[362096975,1747991516038,-151.0,0.000292,7]
[362096976,1747991516061,-158.436901,0.000292,7]
[362096977,1747991516084,-151.0,0.000292,7]
[362096978,1747991516108,-171.329035,0.000292,7]
[362096979,1747991516132,-234.512396,0.000292,7]
[362096980,1747991516155,-151.0,0.000292,7]
[362096981,1747991516183,-234.512396,0.000292,7]
[362096982,1747991516209,-151.0,0.000292,7]
[362096983,1747991516233,-151.0,0.000292,7]
[362096984,1747991516258,-151.0,0.000292,7]
[362096985,1747991516282,-1402.509392,0.000292,7]
[362096986,1747991516306,-1402.509392,0.000292,7]
[362096987,1747991516331,-241.895925,0.000292,7]
[362096988,1747991516356,-151.0,0.000292,7]
[362096989,1747991516379,-241.895925,0.000292,7]
[362096990,1747991516404,-441.565124,0.000292,7]
[362096991,1747991516429,-441.565124,0.000292,7]
[362096992,1747991516453,-151.0,0.000292,7]
[362096993,1747991516477,-151.0,0.000292,7]
[362096994,1747991516502,-233.783151,0.000292,7]
[362096995,1747991516527,-233.783151,0.000292,7]
[362096996,1747991516551,-151.0,0.000292,7]
[362096997,1747991516575,-5672.91331219,0.00029207,2]
[362096998,1747991516598,-165.08,0.00029239,2]
[362096999,1747991516628,-955.6844677,0.00029245,20]
[362097000,1747991516653,-164.39240092,0.00029288,30]
[362097001,1747991516678,-300.654446,0.000293,7]
[362097002,1747991516703,-300.654446,0.000293,7]
[362097003,1747991516726,-151.0,0.000293,7]
[362097004,1747991516749,-151.0,0.000293,7]
[362097005,1747991516776,-527.75,0.00029313,4]
[362097006,1747991516801,-6943.92,0.00029313,4]
[362097007,1747991516826,-420.0,0.00029313,4]
[362097008,1747991516855,-420.0,0.00029313,4]
[362097009,1747991516883,-420.0,0.00029313,4]
[362097010,1747991516908,-617.57,0.00029313,2]
[362097011,1747991516934,-1210.43,0.00029313,4]
[362097012,1747991516958,-420.0,0.00029313,4]
[362097013,1747991516981,-729.42,0.00029313,4]
[362097014,1747991517008,-420.0,0.00029313,4]
[362097015,1747991517035,-2438.98,0.00029313,4]
[362097016,1747991517062,-4640.96,0.00029313,4]
[362097017,1747991517088,-429.76,0.00029313,4]
[362097018,1747991517113,-2057.93,0.00029313,4]
[362097019,1747991517139,-1421.73,0.00029313,4]
[362097020,1747991517164,-509.55,0.00029313,4]
[362097021,1747991517199,-420.0,0.00029313,4]
[362097022,1747991517224,-838.66,0.00029313,4]
[362097023,1747991517250,-4985.69,0.00029313,4]
[362097024,1747991517275,-2018.07,0.00029313,4]
[362097025,1747991517300,-848.67,0.00029313,4]
[362097026,1747991517326,-420.0,0.00029313,4]
[362097027,1747991517352,-442.04,0.00029313,4]
[362097028,1747991517379,-420.0,0.00029313,4]
[362097029,1747991517404,-3201.45,0.00029313,4]
[362097030,1747991517429,-420.0,0.00029313,4]
[362097031,1747991517454,-407.91746338,0.00029313,4]
[362097032,1747991517479,-990.16,0.00029313,4]
[362097033,1747991517503,-151.0,0.00029314,7]
[362097034,1747991517537,-235.66674,0.00029314,7]
[362097035,1747991517568,-235.66674,0.00029314,7]
[362097036,1747991517596,-420.0,0.00029314,4]
[362097037,1747991517622,-572.7,0.00029314,4]
[362097038,1747991517649,-420.0,0.00029314,4]
[362097039,1747991517676,-420.0,0.00029314,4]
[362097040,1747991517702,-151.0,0.00029314,7]